fUSD/lending_fUSD_20250512
["ID","MTS","AMOUNT","RATE_DAILY","PERIOD"]
[360847989,1747071039920,-554.12043434,0.00012799,2]
[360847993,1747071042811,-122.94712427,0.00012799,2]
[360847994,1747071042822,-736.33365,0.000128,2]
[360847995,1747071042832,-188.0573,0.000128,2]
[360847996,1747071042842,-10000.0,0.00012876,2]
[360847997,1747071042852,-207.4,0.00013011,2]
[360847998,1747071042862,-1126.76,0.00013019,2]
[360847999,1747071042872,-457.29,0.000131,2]
[360848000,1747071042882,-416.06421115,0.000131,2]
[360848001,1747071042920,-387.66578885,0.000131,2]
[360848002,1747071042930,-801.84,0.000131,2]
[360848003,1747071042939,-457.29,0.000131,2]
[360848004,1747071042949,-457.29,0.000131,2]
[360848005,1747071042960,-167.12,0.00013127,2]
[360848006,1747071042970,-1853.25817668,0.00013598,2]
[360848008,1747071042980,-181.2077827,0.00013598,2]
[360848009,1747071042989,-602.48428972,0.00013599,2]
[360848018,1747071045672,-9036.70642846,0.00013599,2]
[360848019,1747071045728,-659.40335265,0.00013599,2]
[360848039,1747071899970,1046.83,0.00010652,2]
[360848075,1747072153678,150.0,0.00013699,7]
[360848096,1747072231825,-200.0,0.00012326,2]
[360848097,1747072231835,-200.0,0.0001234,2]
[360848098,1747072231844,-250.0,0.00012353,2]
[360848099,1747072231855,-150.0,0.00012398,2]
[360848100,1747072231864,-200.0,0.00012414,2]
[360848101,1747072231873,-788.91,0.0001244,2]
[360848102,1747072231883,-200.52,0.00012584,2]
[360848103,1747072231893,-1000.0,0.00012616,2]
[360848104,1747072231902,-99.97,0.00012651,2]
[360848105,1747072231914,-416.48,0.00012651,2]
[360848106,1747072231924,-633.59,0.0001267,2]
[360848107,1747072231933,-500.0,0.00012688,2]
[360848108,1747072231945,-2374.97,0.00012724,2]
[360848109,1747072231954,-1200.0,0.00012766,2]
[360848111,1747072231964,-300.0,0.00012768,2]
[360848112,1747072231973,-300.0,0.00012768,2]
[360848114,1747072231983,-13900.0,0.00012769,2]
[360848116,1747072231993,-1046.83,0.00012916,2]
[360848118,1747072232002,-13580.16672287,0.00013,2]
[360848121,1747072232012,-207.4,0.00013011,2]
[360848122,1747072232021,-455.59,0.00013141,2]
[360848124,1747072232031,-500.0,0.00013397,2]
[360848126,1747072232040,-457.29,0.000134,2]
[360848128,1747072232049,-154.64742572,0.00013498,2]
[360848130,1747072232059,-803.73,0.000135,2]
[360848132,1747072232068,-200.0,0.00013559,2]
[360848134,1747072232077,-200.0,0.00013589,2]
[360848136,1747072232087,-156.587,0.0001359,2]
[360848137,1747072232097,-155.0,0.0001359,2]
[360848138,1747072232107,-668.65185757,0.0001359,2]
[360848139,1747072232116,-150.0,0.0001359,2]
[360848140,1747072232126,-1000.0,0.00013598,2]
[360848142,1747072232135,-586.59727227,0.00013598,2]
[360848144,1747072232148,-3727.4887472,0.00013598,2]
[360848145,1747072232157,-19938.93331839,0.00013598,2]
[360848146,1747072232167,-183.97450939,0.00013598,2]
[360848147,1747072232180,-632.5878,0.00013598,2]
[360848148,1747072232190,-3113.2297,0.00013598,2]
[360848149,1747072232200,-166.62198513,0.00013599,2]
[360848150,1747072232210,-5000.0,0.00013653,2]
[360848151,1747072232220,-482.5176,0.00013653,2]
[360848152,1747072232230,-525.2806052,0.00013684,2]
[360848153,1747072232239,-3827.42138151,0.00013697,2]
[360848154,1747072232250,-151.0,0.00013698,2]
[360848155,1747072232259,-168.98362,0.00013698,2]
[360848156,1747072232269,-483.7286939,0.00013698,2]
[360848157,1747072232279,-400.0,0.00013698,2]
[360848158,1747072232289,-329.8944767,0.00013698,2]
[360848159,1747072232300,-400.0,0.00013698,2]
[360848160,1747072232310,-400.0,0.00013698,2]
[360848161,1747072232320,-320.83497211,0.00013698,2]
[360848162,1747072232329,-400.0,0.00013698,2]
[360848163,1747072232339,-151.0,0.00013698,2]
[360848164,1747072232349,-190.83996,0.00013698,2]
[360848165,1747072232359,-400.0,0.00013698,2]
[360848166,1747072232369,-414.85650722,0.00013698,2]
[360848167,1747072232378,-400.0,0.00013698,2]
[360848168,1747072232388,-185.694883,0.00013698,2]
[360848169,1747072232398,-400.0,0.00013698,2]
[360848170,1747072232407,-400.0,0.00013698,2]
[360848171,1747072232418,-179.42731107,0.00013698,2]
[360848172,1747072232428,-410.11835575,0.00013698,2]
[360848173,1747072232438,-403.93119571,0.00013698,2]
[360848174,1747072232450,-403.21284557,0.00013698,2]
[360848175,1747072232459,-263.677429,0.00013698,2]
[360848176,1747072232468,-400.0,0.00013698,2]
[360848177,1747072232477,-263.677429,0.00013698,2]
[360848178,1747072232486,-400.0,0.00013698,2]
[360848179,1747072232497,-263.677429,0.00013698,2]
[360848180,1747072232507,-263.677429,0.00013698,2]
[360848181,1747072232516,-400.0,0.00013698,2]
[360848182,1747072232526,-400.0,0.00013698,2]
[360848183,1747072232534,-151.0,0.00013698,2]
[360848184,1747072232546,-151.0,0.00013698,2]
[360848185,1747072232555,-151.0,0.00013698,2]
[360848186,1747072232565,-413.10114499,0.00013698,2]
[360848187,1747072232574,-400.0,0.00013698,2]
[360848188,1747072232585,-400.0,0.00013698,2]
[360848189,1747072232595,-410.23,0.00013698,2]
[360848190,1747072232605,-438.09158144,0.00013698,2]
[360848191,1747072232616,-400.0,0.00013698,2]
[360848192,1747072232626,-400.0,0.00013698,2]
[360848193,1747072232636,-151.0,0.00013698,2]
[360848194,1747072232647,-400.0,0.00013698,2]
[360848195,1747072232657,-151.0,0.00013698,2]
[360848196,1747072232668,-151.0,0.00013698,2]
[360848197,1747072232682,-151.0,0.00013698,2]
[360848198,1747072232696,-151.0,0.00013698,2]
[360848199,1747072232705,-490.57415066,0.00013698,2]
[360848200,1747072232715,-400.0,0.00013698,2]
[360848201,1747072232724,-400.0,0.00013698,2]
[360848202,1747072232735,-162.217199,0.00013698,2]
[360848203,1747072232745,-162.217199,0.00013698,2]
[360848204,1747072232754,-162.217199,0.00013698,2]
[360848205,1747072232764,-162.217199,0.00013698,2]
[360848206,1747072232773,-151.0,0.00013698,2]
[360848207,1747072232783,-151.0,0.00013698,2]
[360848208,1747072232793,-151.0,0.00013698,2]
[360848209,1747072232803,-396.78708869,0.00013698,2]
[360848210,1747072232813,-400.0,0.00013698,2]
[360848211,1747072232823,-400.0,0.00013698,2]
[360848212,1747072232832,-400.0,0.00013698,2]
[360848213,1747072232843,-400.0,0.00013698,2]
[360848214,1747072232852,-400.0,0.00013698,2]
[360848215,1747072232862,-400.0,0.00013698,2]
[360848216,1747072232873,-400.0,0.00013698,2]
[360848217,1747072232883,-428.57688,0.00013698,2]
[360848218,1747072232893,-400.0,0.00013698,2]
[360848219,1747072232903,-162.182598,0.00013698,2]
[360848220,1747072232913,-151.0,0.00013698,2]
[360848221,1747072232923,-151.0,0.00013698,2]
[360848222,1747072232933,-400.0,0.00013698,2]
[360848223,1747072232945,-400.0,0.00013698,2]
[360848224,1747072232955,-161.568085,0.00013698,2]
[360848225,1747072232964,-1250.881082,0.00013698,2]
[360848226,1747072232974,-1250.881082,0.00013698,2]
[360848227,1747072232983,-400.0,0.00013698,2]
[360848228,1747072232993,-1568.764134,0.00013698,2]
[360848229,1747072233003,-151.0,0.00013698,2]
[360848230,1747072233013,-151.0,0.00013698,2]
[360848231,1747072233022,-400.0,0.00013698,2]
[360848232,1747072233032,-400.0,0.00013698,2]
[360848233,1747072233042,-300.003816,0.00013698,2]
[360848234,1747072233053,-400.0,0.00013698,2]
[360848235,1747072233063,-400.0,0.00013698,2]
[360848236,1747072233073,-400.0,0.00013698,2]
[360848237,1747072233083,-151.0,0.00013698,2]
[360848238,1747072233094,-400.0,0.00013698,2]
[360848239,1747072233104,-400.0,0.00013698,2]
[360848240,1747072233115,-400.0,0.00013698,2]
[360848241,1747072233124,-400.0,0.00013698,2]
[360848242,1747072233135,-151.0,0.00013698,2]
[360848243,1747072233145,-151.0,0.00013698,2]
[360848244,1747072233155,-239.791454,0.00013698,2]
[360848245,1747072233165,-400.0,0.00013698,2]
[360848246,1747072233175,-688.67,0.00013698,2]
[360848247,1747072233185,-400.0,0.00013698,2]
[360848248,1747072233198,-453.04,0.00013698,2]
[360848249,1747072233208,-151.0,0.00013698,2]
[360848250,1747072233218,-741.04,0.00013698,2]
[360848251,1747072233228,-400.0,0.00013698,2]
[360848252,1747072233238,-400.0,0.00013698,2]
[360848253,1747072233249,-400.0,0.00013698,2]
[360848254,1747072233259,-400.0,0.00013698,2]
[360848255,1747072233269,-475.36,0.00013698,2]
[360848256,1747072233279,-400.0,0.00013698,2]
[360848257,1747072233289,-400.0,0.00013698,2]
[360848258,1747072233299,-400.0,0.00013698,2]
[360848259,1747072233308,-660.44,0.00013698,2]
[360848260,1747072233318,-151.0,0.00013698,2]
[360848261,1747072233328,-400.0,0.00013698,2]
[360848262,1747072233337,-400.0,0.00013698,2]
[360848263,1747072233347,-400.0,0.00013698,2]
[360848264,1747072233357,-400.0,0.00013698,2]
[360848265,1747072233367,-400.0,0.00013698,2]
[360848266,1747072233376,-1162.5,0.00013698,2]
[360848267,1747072233386,-448.14543151,0.00013698,2]
[360848268,1747072233395,-400.0,0.00013698,2]
[360848269,1747072233405,-400.0,0.00013698,2]
[360848270,1747072233415,-400.0,0.00013698,2]
[360848271,1747072233425,-298.48258852,0.00013698,2]
[360848272,1747072233435,-308.84855654,0.00013698,2]
[360848273,1747072233448,-156.43647503,0.00013698,2]
[360848274,1747072233457,-466.46,0.00013698,2]
[360848275,1747072233467,-400.0,0.00013698,2]
[360848276,1747072233476,-400.0,0.00013698,2]
[360848277,1747072233486,-400.0,0.00013698,2]
[360848278,1747072233496,-7824.63,0.00013698,2]
[360848279,1747072233506,-400.0,0.00013698,2]
[360848280,1747072233515,-400.0,0.00013698,2]
[360848281,1747072233525,-400.0,0.00013698,2]
[360848282,1747072233535,-400.0,0.00013698,2]
[360848283,1747072233545,-400.0,0.00013698,2]
[360848284,1747072233560,-416.17,0.00013698,2]
[360848285,1747072233569,-400.0,0.00013698,2]
[360848286,1747072233579,-400.0,0.00013698,2]
[360848287,1747072233589,-325.68876144,0.00013698,2]
[360848288,1747072233598,-99294.98,0.00013698,2]
[360848289,1747072233608,-400.0,0.00013698,2]
[360848290,1747072233619,-400.0,0.00013698,2]
[360848291,1747072233629,-2240.14,0.00013698,2]
[360848292,1747072233639,-52466.59,0.00013698,2]
[360848293,1747072233648,-400.0,0.00013698,2]
[360848294,1747072233658,-400.0,0.00013698,2]
[360848295,1747072233668,-400.0,0.00013698,2]
[360848296,1747072233677,-400.0,0.00013698,2]
[360848297,1747072233687,-400.0,0.00013698,2]
[360848298,1747072233700,-400.0,0.00013698,2]
[360848299,1747072233710,-400.0,0.00013698,2]
[360848300,1747072233719,-400.0,0.00013698,2]
[360848301,1747072233728,-1164.89,0.00013698,2]
[360848302,1747072233738,-400.0,0.00013698,2]
[360848303,1747072233747,-426.11,0.00013698,2]
[360848304,1747072233757,-400.0,0.00013698,2]
[360848305,1747072233767,-400.0,0.00013698,2]
[360848306,1747072233776,-631.05,0.00013698,2]
[360848307,1747072233787,-400.0,0.00013698,2]
[360848308,1747072233796,-400.0,0.00013698,2]
[360848309,1747072233805,-400.0,0.00013698,2]
[360848310,1747072233815,-400.0,0.00013698,2]
[360848311,1747072233824,-400.0,0.00013698,2]
[360848312,1747072233834,-400.0,0.00013698,2]
[360848313,1747072233843,-400.0,0.00013698,2]
[360848314,1747072233853,-400.0,0.00013698,2]
[360848315,1747072233863,-400.0,0.00013698,2]
[360848316,1747072233873,-926.32,0.00013698,2]
[360848317,1747072233882,-400.0,0.00013698,2]
[360848318,1747072233892,-472.56982961,0.00013698,2]
[360848319,1747072233901,-400.0,0.00013698,2]
[360848320,1747072233912,-400.0,0.00013698,2]
[360848321,1747072233922,-400.0,0.00013698,2]
[360848322,1747072233932,-400.0,0.00013698,2]
[360848323,1747072233942,-400.0,0.00013698,2]
[360848324,1747072233951,-4245.52,0.00013698,2]
[360848325,1747072233961,-748.79,0.00013698,2]
[360848326,1747072233971,-400.0,0.00013698,2]
[360848327,1747072233981,-400.0,0.00013698,2]
[360848328,1747072233990,-400.0,0.00013698,2]
[360848329,1747072234000,-882.62,0.00013698,2]
[360848330,1747072234010,-400.0,0.00013698,2]
[360848331,1747072234020,-400.0,0.00013698,2]
[360848332,1747072234029,-708.95,0.00013698,2]
[360848333,1747072234038,-400.0,0.00013698,2]
[360848334,1747072234047,-400.0,0.00013698,2]
[360848335,1747072234056,-400.0,0.00013698,2]
[360848336,1747072234065,-400.0,0.00013698,2]
[360848337,1747072234074,-394.68,0.00013698,2]
[360848338,1747072234083,-400.0,0.00013698,2]
[360848339,1747072234092,-400.0,0.00013698,2]
[360848340,1747072234102,-400.0,0.00013698,2]
[360848341,1747072234111,-400.0,0.00013698,2]
[360848342,1747072234121,-400.0,0.00013698,2]
[360848343,1747072234131,-400.0,0.00013698,2]
[360848344,1747072234140,-20975.16,0.00013698,2]
[360848345,1747072234150,-400.0,0.00013698,2]
[360848346,1747072234160,-400.0,0.00013698,2]
[360848347,1747072234170,-400.0,0.00013698,2]
[360848348,1747072234179,-858.71,0.00013698,2]
[360848349,1747072234188,-918.13,0.00013698,2]
[360848350,1747072234200,-668.7,0.00013698,2]
[360848351,1747072234210,-400.0,0.00013698,2]
[360848352,1747072234220,-151.0,0.00013698,2]
[360848353,1747072234230,-400.0,0.00013698,2]
[360848354,1747072234240,-151.0,0.00013698,2]
[360848355,1747072234250,-400.0,0.00013698,2]
[360848356,1747072234261,-400.0,0.00013698,2]
[360848357,1747072234271,-400.0,0.00013698,2]
[360848358,1747072234280,-2881.54,0.00013698,2]
[360848359,1747072234290,-400.0,0.00013698,2]
[360848360,1747072234300,-446.10267803,0.00013698,2]
[360848361,1747072234310,-400.0,0.00013698,2]
[360848362,1747072234320,-532.50048018,0.00013698,2]
[360848363,1747072234330,-400.0,0.00013698,2]
[360848364,1747072234340,-2139.34,0.00013698,2]
[360848365,1747072234349,-1161.87,0.00013698,2]
[360848366,1747072234359,-400.0,0.00013698,2]
[360848367,1747072234370,-400.0,0.00013698,2]
[360848368,1747072234380,-400.0,0.00013698,2]
[360848369,1747072234391,-936.9,0.00013698,2]
[360848370,1747072234401,-400.0,0.00013698,2]
[360848371,1747072234411,-447.92,0.00013698,2]
[360848372,1747072234421,-400.0,0.00013698,2]
[360848373,1747072234431,-400.0,0.00013698,2]
[360848374,1747072234445,-163.35,0.00013698,2]
[360848375,1747072234455,-419.03364393,0.00013698,2]
[360848376,1747072234465,-400.0,0.00013698,2]
[360848377,1747072234475,-400.0,0.00013698,2]
[360848378,1747072234485,-400.0,0.00013698,2]
[360848379,1747072234495,-554.71,0.00013698,2]
[360848380,1747072234505,-756.31,0.00013698,2]
[360848381,1747072234515,-400.0,0.00013698,2]
[360848382,1747072234525,-472.52,0.00013698,2]
[360848383,1747072234535,-400.0,0.00013698,2]
[360848384,1747072234545,-2190.67,0.00013698,2]
[360848385,1747072234558,-400.0,0.00013698,2]
[360848386,1747072234568,-400.0,0.00013698,2]
[360848387,1747072234577,-400.0,0.00013698,2]
[360848388,1747072234587,-400.0,0.00013698,2]
[360848389,1747072234597,-400.0,0.00013698,2]
[360848390,1747072234607,-400.0,0.00013698,2]
[360848391,1747072234617,-400.0,0.00013698,2]
[360848392,1747072234628,-472.22,0.00013698,2]
[360848393,1747072234638,-400.0,0.00013698,2]
[360848394,1747072234647,-417.66,0.00013698,2]
[360848395,1747072234656,-400.0,0.00013698,2]
[360848396,1747072234666,-400.0,0.00013698,2]
[360848397,1747072234676,-400.0,0.00013698,2]
[360848398,1747072234686,-400.0,0.00013698,2]
[360848399,1747072234698,-1759.8,0.00013698,2]
[360848400,1747072234708,-400.0,0.00013698,2]
[360848401,1747072234717,-400.0,0.00013698,2]
[360848402,1747072234728,-400.0,0.00013698,2]
[360848403,1747072234737,-400.0,0.00013698,2]
[360848404,1747072234747,-400.0,0.00013698,2]
[360848405,1747072234757,-400.76702138,0.00013698,2]
[360848406,1747072234767,-400.0,0.00013698,2]
[360848407,1747072234777,-899.2,0.00013698,2]
[360848408,1747072234787,-942.32,0.00013698,2]
[360848409,1747072234797,-400.0,0.00013698,2]
[360848410,1747072234806,-500.0,0.00013698,2]
[360848411,1747072234816,-400.0,0.00013698,2]
[360848412,1747072234826,-400.0,0.00013698,2]
[360848413,1747072234836,-1066.82,0.00013698,2]
[360848414,1747072234846,-400.0,0.00013698,2]
[360848415,1747072234856,-3756.47,0.00013698,2]
[360848416,1747072234866,-400.0,0.00013698,2]
[360848417,1747072234875,-400.0,0.00013698,2]
[360848418,1747072234885,-400.0,0.00013698,2]
[360848419,1747072234894,-400.0,0.00013698,2]
[360848420,1747072234903,-400.0,0.00013698,2]
[360848421,1747072234913,-1633.38,0.00013698,2]
[360848422,1747072234922,-400.0,0.00013698,2]
[360848423,1747072234932,-400.0,0.00013698,2]
[360848424,1747072234942,-400.0,0.00013698,2]
[360848425,1747072234952,-151.0,0.00013698,2]
[360848426,1747072234962,-400.0,0.00013698,2]
[360848427,1747072234971,-151.0,0.00013698,2]
[360848428,1747072234980,-151.0,0.00013698,2]
[360848429,1747072234990,-400.0,0.00013698,2]
[360848430,1747072234999,-1000.0,0.00013698,2]
[360848431,1747072235009,-400.0,0.00013698,2]
[360848432,1747072235018,-400.0,0.00013698,2]
[360848433,1747072235028,-400.0,0.00013698,2]
[360848434,1747072235037,-400.0,0.00013698,2]
[360848435,1747072235048,-400.0,0.00013698,2]
[360848436,1747072235057,-381.737488,0.00013698,2]
[360848437,1747072235067,-284.12,0.00013698,2]
[360848438,1747072235076,-381.737488,0.00013698,2]
[360848439,1747072235087,-400.0,0.00013698,2]
[360848440,1747072235096,-151.0,0.00013698,2]
[360848441,1747072235106,-151.0,0.00013698,2]
[360848442,1747072235115,-151.0,0.00013698,2]
[360848443,1747072235125,-400.0,0.00013698,2]
[360848444,1747072235134,-400.0,0.00013698,2]
[360848445,1747072235143,-381.737488,0.00013698,2]
[360848446,1747072235153,-381.737488,0.00013698,2]
[360848447,1747072235163,-151.0,0.00013698,2]
[360848448,1747072235173,-151.0,0.00013698,2]
[360848449,1747072235182,-157.233452,0.00013698,2]
[360848450,1747072235194,-4591.452834,0.00013698,2]
[360848451,1747072235204,-4591.452834,0.00013698,2]
[360848452,1747072235214,-4591.452834,0.00013698,2]
[360848453,1747072235223,-400.0,0.00013698,2]
[360848454,1747072235233,-400.0,0.00013698,2]
[360848455,1747072235242,-400.0,0.00013698,2]
[360848456,1747072235252,-4591.452834,0.00013698,2]
[360848457,1747072235262,-4591.452834,0.00013698,2]
[360848458,1747072235272,-4591.452834,0.00013698,2]
[360848459,1747072235281,-151.0,0.00013699,2]
[360848460,1747072235291,-151.0,0.00013699,2]
[360848461,1747072235301,-500.0,0.00013699,2]
[360848462,1747072235310,-200.0,0.00013699,2]
[360848463,1747072235320,-481.15,0.00013699,2]
[360848464,1747072235330,-4134.7,0.00013699,2]
[360848465,1747072235340,-297.21,0.00013699,2]
[360848466,1747072235349,-150.99,0.00013699,2]
[360848467,1747072235359,-9999.99,0.00013699,2]
[360848468,1747072235370,-5191.32,0.00013699,2]
[360848469,1747072235379,-999.99,0.00013699,2]
[360848470,1747072235389,-9999.99,0.00013699,2]
[360848471,1747072235399,-151.0,0.00013699,2]
[360848472,1747072235409,-500.0,0.00013699,2]
[360848473,1747072235419,-500.0,0.00013699,2]
[360848474,1747072235429,-500.0,0.00013699,2]
[360848475,1747072235439,-500.0,0.00013699,2]
[360848476,1747072235450,-500.0,0.00013699,2]
[360848477,1747072235460,-500.0,0.00013699,2]
[360848478,1747072235469,-500.0,0.00013699,2]
[360848479,1747072235478,-500.0,0.00013699,2]
[360848480,1747072235488,-240.15218556,0.00013699,2]
[360848481,1747072235497,-500.0,0.00013699,2]
[360848482,1747072235507,-151.0,0.00013699,2]
[360848483,1747072235517,-151.0,0.00013699,2]
[360848484,1747072235527,-200.0,0.00013699,2]
[360848485,1747072235537,-151.0,0.00013699,2]
[360848486,1747072235549,-151.0,0.00013699,2]
[360848487,1747072235559,-151.0,0.00013699,2]
[360848488,1747072235738,-200.0,0.00013699,2]
[360848489,1747072235750,-381.737488,0.00013699,2]
[360848490,1747072235763,-381.737488,0.00013699,2]
[360848491,1747072235774,-155.0,0.00013699,2]
[360848492,1747072235784,-3727.48874716,0.00013702,2]
[360848493,1747072235794,-8934.54605769,0.00013702,2]
[360848496,1747072237687,-369.4272867,0.00013698,2]
[360848497,1747072237740,-30.5727133,0.00013698,2]
[360848498,1747072237751,-482.88659141,0.00013699,2]
[360848499,1747072237761,-500.0,0.00013699,2]
[360848500,1747072237771,-290.89069529,0.00013699,2]
[360848531,1747072239942,-299.75232966,0.00013698,2]
[360848537,1747072243616,-100.24767034,0.00013698,2]
[360848538,1747072243628,-1114.06,0.00013698,2]
[360848539,1747072243640,-209.10930471,0.00013699,2]
[360848540,1747072243649,-500.0,0.00013699,2]
[360848541,1747072243659,-455.34803334,0.00013699,2]
[360848542,1747072243668,-500.0,0.00013699,2]
[360848543,1747072243678,-4965.75984275,0.00013702,2]
[360848544,1747072243723,-284.7408,0.00013698,2]
[360848545,1747072245736,-115.2592,0.00013698,2]
[360848546,1747072245746,-442.49597062,0.00013698,2]
[360848547,1747072245757,-76.19744998,0.00013702,2]
[360848548,1747072245976,-617.617,0.00013702,2]
[360848604,1747072942468,-1000.0,0.00012735,2]
[360848605,1747072942501,-185.37,0.00012752,2]
[360848606,1747072942541,-200.0,0.00013153,2]
[360848607,1747072942580,-468.422278,0.00013552,2]
[360848608,1747072942613,-200.0,0.00013575,2]
[360848609,1747072942645,-200.0,0.00013588,2]
[360848610,1747072942675,-300.0,0.00013597,2]
[360848611,1747072942706,-2981.9909978,0.00013598,2]
[360848612,1747072942737,-187.68006593,0.00013598,2]
[360848613,1747072942774,-317.5069,0.00013598,2]
[360848614,1747072942805,-1200.0,0.00013652,2]
[360848615,1747072942838,-150.0,0.00013652,2]
[360848616,1747072942858,-1000.0,0.00013653,2]
[360848617,1747072942876,-185.37,0.00013653,2]
[360848618,1747072942887,-200.0,0.00013653,2]
[360848619,1747072942903,-468.422278,0.00013653,2]
[360848620,1747072942916,-200.0,0.00013653,2]
[360848621,1747072942934,-200.0,0.00013653,2]
[360848622,1747072942956,-300.0,0.00013653,2]
[360848623,1747072942968,-2446.207722,0.00013653,2]
[360848624,1747072942977,-166.62198513,0.00013653,2]
[360848625,1747072942987,-369.16129067,0.00013684,2]
[360848626,1747072943000,-51.06319343,0.00013684,2]
[360848627,1747072943009,-136.6168725,0.0001369,2]
[360848628,1747072943025,-70.7831275,0.0001369,2]
[360848629,1747072943034,-246.7237725,0.00013698,2]
[360848630,1747072943052,-153.2762275,0.00013698,2]
[360848631,1747072943063,-976.68395612,0.00013698,2]
[360848632,1747072943072,-70.03981638,0.00013698,2]
[360848633,1747072943084,-80.96018362,0.00013698,2]
[360848634,1747072943094,-69.03981638,0.00013698,2]
[360848635,1747072943112,-81.96018362,0.00013698,2]
[360848636,1747072943122,-154.240294,0.00013698,2]
[360848637,1747072943131,-151.0,0.00013698,2]
[360848638,1747072943141,-151.0,0.00013698,2]
[360848639,1747072943151,-151.0,0.00013698,2]
[360848640,1747072943160,-151.0,0.00013698,2]
[360848641,1747072943170,-400.0,0.00013698,2]
[360848642,1747072943180,-151.0,0.00013698,2]
[360848643,1747072943189,-151.0,0.00013698,2]
[360848644,1747072943199,-400.0,0.00013698,2]
[360848645,1747072943208,-416.82752367,0.00013698,2]
[360848646,1747072943218,-400.0,0.00013698,2]
[360848647,1747072943228,-400.0,0.00013698,2]
[360848648,1747072943239,-59.03151525,0.00013698,2]
[360848649,1747072946620,942.14,0.00010895,2]
[360848650,1747073016657,-394.45,0.00012781,2]
[360848651,1747073016689,-942.14,0.00013159,2]
[360848652,1747073016718,-309.29485146,0.00013598,2]
[360848653,1747073016749,-3222.60234558,0.00013602,2]
[360848654,1747073016762,-394.45,0.00013602,2]
[360848655,1747073016777,-942.14,0.00013602,2]
[360848656,1747073016789,-309.29485146,0.00013602,2]
[360848657,1747073016800,-11617.14075446,0.00013602,2]
[360848658,1747073016811,-4868.48719704,0.00013653,2]
[360848659,1747073085109,-14037.0704,0.00013598,2]
[360848660,1747073085122,-8925.8592,0.00013598,2]
[360848661,1747073085134,-131.51280296,0.00013653,2]
[360848662,1747073085144,-200.0,0.00013653,2]
[360848663,1747073085153,-1432.16633086,0.00013653,2]
[360848664,1747073085163,-200.0,0.00013677,2]
[360848665,1747073085172,-336.1795873,0.00013684,2]
[360848666,1747073085182,-11737.21167888,0.00013696,2]
[360848667,1747073198447,150.0,0.00013699,7]
[360848703,1747073432051,-150.14,0.00012711,2]
[360848704,1747073432065,-332.26,0.00012711,2]
[360848705,1747073432076,-855.13848233,0.00013447,2]
[360848706,1747073432085,-306.36129891,0.000135,2]
[360848707,1747073432095,-282.73930691,0.00013586,2]
[360848708,1747073432104,-225.2809,0.00013596,2]
[360848709,1747073432115,-4270.25760026,0.00013596,2]
[360848710,1747073432124,-1200.0,0.00013597,2]
[360848711,1747073432135,-300.0,0.00013597,2]
[360848712,1747073432144,-3838.0825102,0.00013598,2]
[360848713,1747073432171,-535.3884398,0.00013598,2]
[360848714,1747073432183,-1069.85932377,0.00013598,2]
[360848715,1747073432207,-819.33484271,0.00013598,2]
[360848716,1747073432220,-5666.54743258,0.00013598,2]